Cogmind - Beta 10.2 @@@ ROGUE MODE // 2021.07.14 @ 16:55:28 Player: zapruda Result: Destroyed by G-67 Veteran with Plasma Rifle Performance ------------- Evolutions (4) 2000 Regions Visited (11) 2200 Robots Destroyed (126) 630 Value Destroyed (3397) 3397 Prototype IDs (10) 200 Alien Tech Used (0) 0 Bonus (947) 947 TOTAL SCORE: 9374 Bonus ------- High Alert Combat Kills 366 Follower Combat Kills 404 Entered Garrisons 200 Friendly Fire -23 Cogmind --------- Core Integrity 0/850 Matter 208/300 Energy 100/100 System Corruption 4% Temperature Cool (12) Movement Walking (120) Location -6/Garrison Parts ------- > --- POWER (2) -------- (None) > --- PROPULSION (4) --- Carbon-fiber Leg > --- UTILITY (7) ------ Enhanced Optical Array > --- WEAPON (2) ------- Autogun > --- INVENTORY (4) ---- (None) Peak State ------------ > --- POWER ------------ Light Nuclear Core Light Fission Core > --- PROPULSION ------- VTOL Module VTOL Module VTOL Module Nuclear Pulse Thruster > --- UTILITY ---------- Cryofiber Web Energy Well Enhanced Optical Array Advanced Sensor Array Advanced Signal Interpreter Hacking Suite System Shield > --- WEAPON ----------- Coil Gun Coil Gun > --- INVENTORY -------- Improved Deuterium Engine Proton Cannon Improved Proton Missile Launcher Remote Datajack [Rating: 54] Favorites ----------- Power Light Nuclear Core Engine Heavy Ion Engine Power Core Light Nuclear Core Reactor Cold Fusion Reactor Propulsion Light Treads Treads Light Treads Leg Carbon-fiber Leg Hover Unit Backup Propulsion I Flight Unit VTOL Module Utility Hacking Suite Device Sensor Drone Bay Storage High-capacity Storage Unit Processor Advanced Signal Interpreter Hackware Hacking Suite Protection Core Shielding Weapon Minigun Energy Gun High-powered Electrolaser Ballistic Gun Minigun Ballistic Cannon Light Cannon Launcher Rocket Launcher Special Weapon Remote Datajack Slashing Weapon Great Axe Build | -11 -10 -10 -9 -8 -8 -7 -7 -7 -7 -6 -6 ------- Run | Scr Mat Min Mat Mat Sto Fac Was Fac Low Fac Gar Slots Evolved 8 | . . . 2 2 . 2 . . . 2 . Power 1 | . . . . . . 1 . . . . . Propulsion 2 | . . . . . . 1 . . . 1 . Utility 5 | . . . 2 2 . . . . . 1 . Weapon . | . . . . . . . . . . . . Parts Attached 125 | 6 4 5 13 9 23 4 1 34 2 7 17 Power 18 | 1 1 1 1 . 4 1 . 5 . 1 3 Engine 7 | 1 1 . 1 . 1 . . 2 . . 1 Core 10 | . . 1 . . 2 1 . 3 . 1 2 Reactor 1 | . . . . . 1 . . . . . . Propulsion 31 | 2 . 1 2 2 8 2 . 6 . 2 6 Treads 14 | 2 . . 1 1 8 2 . . . . . Leg 7 | . . 1 1 1 . . . 3 . . 1 Wheel . | . . . . . . . . . . . . Hover . | . . . . . . . . . . . . Flight 10 | . . . . . . . . 3 . 2 5 Utility 33 | 1 1 1 4 5 2 . 1 13 1 2 2 Device 20 | . . . 2 2 1 . 1 10 1 1 2 Storage 3 | 1 . . 1 . . . . . . 1 . Processor 6 | . 1 1 . 2 . . . 2 . . . Hackware 3 | . . . . 1 1 . . 1 . . . Protection 1 | . . . 1 . . . . . . . . Artifact . | . . . . . . . . . . . . Weapon 43 | 2 2 2 6 2 9 1 . 10 1 2 6 Energy Gun 9 | . . 1 3 1 1 . . 3 . . . Energy Cannon . | . . . . . . . . . . . . Ballistic Gun 16 | 2 . . . . 5 1 . 2 . 2 4 Ballistic Cannon 6 | . 2 1 2 . 1 . . . . . . Launcher 7 | . . . 1 1 2 . . 1 1 . 1 Special Weapon 2 | . . . . . . . . 1 . . 1 Impact Weapon . | . . . . . . . . . . . . Slashing Weapon 3 | . . . . . . . . 3 . . . Piercing Weapon . | . . . . . . . . . . . . Special Melee Weapon . | . . . . . . . . . . . . Unidentified Prototypes 6 | . . . 3 . 2 . . 1 . . . Parts Lost 61 | . . 1 3 3 7 1 4 15 . . 27 Power 10 | . . . . . 2 . 1 3 . . 4 Propulsion 20 | . . 1 1 1 1 1 2 4 . . 9 Utility 15 | . . . 1 . 1 . . 5 . . 8 Weapon 16 | . . . 1 2 3 . 1 3 . . 6 Highest Loss Streak 27 | . . 1 1 2 4 1 3 6 . . 27 Average Slot Usage (%) 89 | . 93 84 97 98 95 99 59 70 100 92 51 Engine 5 | . 14 9 2 9 1 . . 6 7 . . Core 3 | . . 4 8 . 3 7 2 1 7 10 4 Reactor 1 | . . . . . 3 7 2 . . . . Treads 10 | . 28 18 4 8 17 22 11 . . . . Leg 4 | . . 4 17 8 . . . 3 . . . Flight 3 | . . . . . . . . 3 23 26 10 Device 12 | . . . 16 23 10 7 4 19 15 14 6 Storage 7 | . 14 14 11 9 9 7 3 . . 4 5 Processor 12 | . 8 14 5 12 18 15 13 7 15 13 12 Hackware 8 | . . . . 2 16 15 13 11 15 13 5 Protection 1 | . . . 10 6 . . . . . . . Energy Gun 2 | . . 3 5 3 2 . . 1 7 3 . Ballistic Gun 3 | . 5 . . . 9 10 6 2 . 2 4 Ballistic Cannon 5 | . 22 14 10 5 . . . . . . . Launcher 2 | . . . 4 8 1 4 . . 7 1 . Slashing Weapon 1 | . . . . . . . . 6 . . . Naked Turns . | . . . . . . . . . . . . Heaviest Build 72 | 10 15 17 65 67 65 72 71 28 29 30 27 Greatest Support 60 | 40 40 40 30 23 43 60 60 33 15 23 23 Greatest Overweight (x) 20 | . . . 4 20 17 1 3 8 1 1 5 Average Overweight (x) . | . . . 1 2 1 1 . 1 1 . . Largest Inventory Capacity 12 | 6 6 6 12 12 12 12 12 4 4 4 4 Average Capacity 8 | 5 6 6 10 12 12 12 8 4 4 4 4 Most Carried 12 | 2 6 6 8 8 12 12 11 4 4 4 4 Average Carried 5 | 1 3 5 4 6 10 10 7 1 3 3 1 Final Capacity 12 | 6 6 6 12 12 12 12 4 4 4 4 4 Final Carried 12 | 1 6 6 7 8 12 11 4 4 4 4 . Class Distribution -------------------- 51% | Mutant 22% | Scavenger-Mutant 18% | Hacker-Mutant 3% | Scavenger-Skirmisher Dominant Class ---------------- Mutant | -10/Materials Mutant | -10/Mines Mutant | -9/Materials Mutant | -8/Materials Hacker-Mutant | -8/Storage Scavenger-Mutant | -7/Factory Hacker-Mutant | -7/Waste Hacker-Mutant | -7/Factory Scavenger-Mutant | -7/Lower Caves Scavenger-Scout | -6/Factory Mutant | -6/Garrison Resources | -11 -10 -10 -9 -8 -8 -7 -7 -7 -7 -6 -6 ----------- Run | Scr Mat Min Mat Mat Sto Fac Was Fac Low Fac Gar Matter Collected 3221 | 244 78 179 410 557 1086 73 . 403 47 58 86 Remotely . | . . . . . . . . . . . . Salvage Created 3929 | . 171 88 699 791 1449 157 . 433 . . 141 Parts 259 | . 14 8 43 50 100 5 . 28 . . 11 Haulers Intercepted 12 | . . . 3 2 5 1 . 1 . . . Recyclers Shooed 1 | . . . 1 . . . . . . . . Parts Field Recycled . | . . . . . . . . . . . . Retrieved Matter . | . . . . . . . . . . . . Parts Self-Destructed . | . . . . . . . . . . . . Prevented . | . . . . . . . . . . . . Kills | -11 -10 -10 -9 -8 -8 -7 -7 -7 -7 -6 -6 ------- Run | Scr Mat Min Mat Mat Sto Fac Was Fac Low Fac Gar Combat Hostiles Destroyed 80 | . 5 5 10 20 25 2 . 9 . . 4 Melee 7 | . . . . . . . . 7 . . . Guns 29 | . . . 3 3 17 2 . 2 . . 2 Cannons 29 | . 5 5 7 8 4 . . . . . . AOE 15 | . . . . 9 4 . . . . . 2 Classes Destroyed 12 | . 3 2 5 1 . . . 1 . . . Worker 11 | . 2 . 1 2 6 . . . . . . Builder 10 | . 2 . 2 3 3 . . . . . . Hauler 12 | . . . 3 2 5 1 . 1 . . . Recycler 3 | . . . 2 1 . . . . . . . Operator 5 | . . . 1 2 2 . . . . . . Watcher 5 | . . . 2 1 1 . . 1 . . . Swarmer 26 | . . 3 2 7 7 . . 4 . . 3 Grunt 38 | . 5 . 4 10 12 2 . 4 . . 1 Brawler 1 | . . . 1 . . . . . . . . Duelist 2 | . . . . 2 . . . . . . . Sentry 12 | . . 2 3 1 6 . . . . . . Programmer 1 | . . . . . . . . 1 . . . Best Kill Streak 16 | . 3 4 5 16 9 1 . 4 . . 2 Combat Bots Only 14 | . 2 4 2 14 5 1 . 4 . . 2 Max Kills in Single Turn 5 | . 2 1 1 5 3 1 . 1 . . 2 Gunslinging . | . . . . . . . . . . . . Exploded 3 | . . . . 3 2 . . . . . 2 Melee 1 | . . . . . . . . 1 . . . Uniques/NPCs Destroyed . | . . . . . . . . . . . . Combat | -11 -10 -10 -9 -8 -8 -7 -7 -7 -7 -6 -6 -------- Run | Scr Mat Min Mat Mat Sto Fac Was Fac Low Fac Gar Damage Taken 8464 | . 331 381 636 770 1778 216 210 1723 29 . 2390 Core 2276 | . 153 62 113 152 245 31 55 603 . . 862 Absorbed by Shields 59 | . . . . . . . . . . . 59 Core Remaining (%) 42 | 100 . 14 71 . 27 . . . 1 . . Volleys Fired 413 | . 28 16 70 74 134 18 . 36 2 . 35 Largest 2 | . 2 2 2 2 2 2 . 1 1 . 2 Hottest 104 | . 70 70 91 78 104 50 . 70 70 . 73 Shots Fired 582 | . 56 32 110 86 197 26 . 36 2 . 37 Gun 325 | . 6 . 34 24 163 26 . 36 2 . 34 Cannon 218 | . 50 32 70 50 16 . . . . . . Launcher 38 | . . . 6 12 18 . . . . . 2 Special 1 | . . . . . . . . . . . 1 Kinetic 443 | . 56 32 70 50 149 26 . 26 . . 34 Thermal 32 | . . . 15 . 8 . . 7 2 . . Explosive 36 | . . . 6 12 18 . . . . . . Electromagnetic 70 | . . . 19 24 22 . . 3 . . 2 Robot Hit Streak 23 | . 4 9 9 16 23 9 . 4 1 . 7 Robot Miss Streak 6 | . 4 3 6 3 2 1 . 4 2 . 3 Penetration Max . | . . . . . . . . . . . . Secondary Targets . | . . . . . . . . . . . . Shots Hit Robots 395 | . 32 20 68 56 140 19 . 35 1 . 24 Core Hits 215 | . 12 7 31 61 66 7 . 17 . . 14 Critical Hits 4 | . . . . 1 1 1 . 1 . . . Critical Kills 1 | . . . . . . 1 . . . . . Critical Parts Destroyed 3 | . . . . 1 1 . . 1 . . . Melee Attacks 24 | . . . . . . . . 24 . . . Impact . | . . . . . . . . . . . . Slashing 24 | . . . . . . . . 24 . . . Piercing . | . . . . . . . . . . . . Sneak Attacks . | . . . . . . . . . . . . Combat Hostiles . | . . . . . . . . . . . . Follow-up Attacks 1 | . . . . . . . . 1 . . . Damage Inflicted 9316 | . 537 348 1395 2443 2697 302 . 1002 25 . 567 Guns 4050 | . 39 . 366 437 2107 302 . 378 25 . 396 Cannons 2530 | . 455 348 790 674 263 . . . . . . Explosions 2099 | . 43 . 239 1332 327 . . . . . 158 Melee 624 | . . . . . . . . 624 . . . Ramming 13 | . . . . . . . . . . . 13 Kinetic 5189 | . 494 348 790 674 1967 302 . 218 . . 396 Thermal 633 | . . . 165 123 192 . . 128 25 . . Explosive 1628 | . 43 . 175 1209 201 . . . . . . Electromagnetic 1229 | . . . 265 437 337 . . 32 . . 158 Impact . | . . . . . . . . . . . . Slashing 624 | . . . . . . . . 624 . . . Piercing . | . . . . . . . . . . . . Highest Corruption 4 | . 3 3 3 . . . . 1 1 . 4 Average Corruption 2 | . 2 3 2 . . . . 1 1 . 4 Corruption Purged . | . . . . . . . . . . . . Effects 26 | . 2 12 9 . . . . 2 1 . . Message Errors 7 | . 1 2 3 . . . . . 1 . . Matter Fused 6 | . . 4 2 . . . . . . . . Heat Flow Errors 2 | . . 2 . . . . . . . . . Energy Discharges 1 | . . 1 . . . . . . . . . Data Loss (minor) 5 | . . 1 3 . . . . 1 . . . Targeting Errors 5 | . 1 2 1 . . . . 1 . . . Overload Shots . | . . . . . . . . . . . . Overflow Damage 51 | . 16 15 10 10 . . . . . . . Projectiles 41 | . 16 15 . 10 . . . . . . . Explosions 10 | . . . 10 . . . . . . . . Melee . | . . . . . . . . . . . . Knockbacks 29 | . 6 5 2 12 4 . . . . . . Impact . | . . . . . . . . . . . . Kinetic 28 | . 6 5 1 12 4 . . . . . . Secondary 1 | . . . 1 . . . . . . . . Self-Inflicted Damage 404 | . 97 . 38 90 142 . . . . . 37 Shots 13 | . 1 . 2 4 4 . . . . . 2 Rammed 13 | . . . . . . . . . . . 13 Targets Rammed 13 | . . . . . . . . . . . 13 Kicked . | . . . . . . . . . . . . Crushed . | . . . . . . . . . . . . Highest Temperature 250 | . 126 250 207 60 120 7 . 144 72 . 7 Average Temperature 39 | . 33 54 49 30 18 6 . 46 39 . 7 Received Heat Transfer 2335 | . 84 36 186 342 621 90 . 540 12 . 424 Siege Activations . | . . . . . . . . . . . . Robots Corrupted . | . . . . . . . . . . . . Combat Hostiles . | . . . . . . . . . . . . Parts Fried 8 | . . . 1 2 4 . . . . . 1 Impact Corruptions 1 | . . . 1 . . . . . . . . Robots Melted . | . . . . . . . . . . . . Combat Hostiles . | . . . . . . . . . . . . Parts Melted . | . . . . . . . . . . . . Heat Transferred 916 | . . . 309 50 298 . . 222 37 . . Parts Sabotaged . | . . . . . . . . . . . . Parts Stolen . | . . . . . . . . . . . . Parts Stripped . | . . . . . . . . . . . . Power Chain Reactions 6 | . . . 1 3 2 . . . . . . Missiles Intercepted . | . . . . . . . . . . . . Alert | -11 -10 -10 -9 -8 -8 -7 -7 -7 -7 -6 -6 ------- Run | Scr Mat Min Mat Mat Sto Fac Was Fac Low Fac Gar Peak Influence 887 | . 159 172 208 564 887 450 169 148 . 72 210 Initial 403 | . . 27 . 30 201 403 154 100 . 9 50 Average 254 | . 69 76 94 334 617 419 149 58 . 42 127 Maximum Alert Level 3 | . . . 1 2 3 2 . . . . 1 Low Security (%) 63 | 100 100 100 95 34 . . 100 100 . 100 96 Level 1 7 | . . . 4 15 19 . . . . . 3 Level 2 19 | . . . . 50 41 100 . . . . . Level 3 10 | . . . . . 39 . . . . . . Level 4 . | . . . . . . . . . . . . Level 5 . | . . . . . . . . . . . . High Security . | . . . . . . . . . . . . Max Security . | . . . . . . . . . . . . Squads Dispatched 20 | . 2 . 3 2 8 1 . 3 . 1 . Investigation 5 | . 2 . 1 . 1 . . . . 1 . Extermination 2 | . . . . . . . . 2 . . . Reinforcement 9 | . . . 2 2 3 1 . 1 . . . Assault . | . . . . . . . . . . . . Garrison 4 | . . . . . 4 . . . . . . Intercept . | . . . . . . . . . . . . Construction Impeded 1 | . . . . . 1 . . . . . . Haulers Reinforced 1 | . . . . . . 1 . . . . . Stealth | -11 -10 -10 -9 -8 -8 -7 -7 -7 -7 -6 -6 --------- Run | Scr Mat Min Mat Mat Sto Fac Was Fac Low Fac Gar Distress Signals 6 | . . . 3 1 1 . . 1 . . . Communications Jammed . | . . . . . . . . . . . . Distress Signals . | . . . . . . . . . . . . Times Spotted 161 | . 7 7 25 31 44 3 6 19 1 . 18 Peak Tracking Total 13 | . 3 4 3 11 4 2 6 4 1 . 13 Tactical Retreats 9 | . . 1 . . 2 . . 4 1 . 1 Traps | -11 -10 -10 -9 -8 -8 -7 -7 -7 -7 -6 -6 ------- Run | Scr Mat Min Mat Mat Sto Fac Was Fac Low Fac Gar Traps Triggered 13 | . 4 1 . . 5 1 . . . . 2 Indirectly . | . . . . . . . . . . . . Trap Hack Attempts . | . . . . . . . . . . . . Triggered . | . . . . . . . . . . . . Disarmed . | . . . . . . . . . . . . Reprogrammed . | . . . . . . . . . . . . Reused . | . . . . . . . . . . . . Traps Extracted . | . . . . . . . . . . . . Installed . | . . . . . . . . . . . . Triggered 1 | . . 1 . . . . . . . . . Machines | -11 -10 -10 -9 -8 -8 -7 -7 -7 -7 -6 -6 ---------- Run | Scr Mat Min Mat Mat Sto Fac Was Fac Low Fac Gar Machines Disabled 12 | . 3 . 2 3 3 . . . . . 1 Max in Single Turn 2 | . 2 . 1 1 1 . . . . . 1 Garrison Relay 1 | . . . . . . . . . . . 1 Machines Sabotaged . | . . . . . . . . . . . . Garrisons Compromised . | . . . . . . . . . . . . Overloaded Fab Kills . | . . . . . . . . . . . . Fab Network Shutdowns . | . . . . . . . . . . . . Hacking | -11 -10 -10 -9 -8 -8 -7 -7 -7 -7 -6 -6 --------- Run | Scr Mat Min Mat Mat Sto Fac Was Fac Low Fac Gar Machines Accessed 26 | . 5 3 2 1 6 1 . 3 1 4 . Terminals 14 | . 4 1 2 . 5 . . 1 . 1 . Fabricators 3 | . . . . . . 1 . 1 . 1 . Repair Stations 3 | . . . . 1 . . . 1 . 1 . Recycling Units 2 | . 1 . . . 1 . . . . . . Scanalyzers . | . . . . . . . . . . . . Garrison Access 1 | . . . . . . . . . . 1 . Total Hacks 57 | . 10 5 8 2 11 1 . 8 1 11 . Successful 24 | . 2 2 2 2 6 1 . 5 1 3 . Failed 33 | . 8 3 6 . 5 . . 3 . 8 . Catastrophic 7 | . 3 . 2 . . . . . . 2 . Database Lockouts . | . . . . . . . . . . . . Manual . | . . . . . . . . . . . . Terminals 36 | . 9 3 8 . 10 . . 3 . 3 . Fabricators 7 | . . . . . . 1 . 3 . 3 . Repair Stations 8 | . . . . 2 . . . 2 . 4 . Recycling Units 2 | . 1 . . . 1 . . . . . . Scanalyzers . | . . . . . . . . . . . . Garrison Access 1 | . . . . . . . . . . 1 . Terminal Hacks 13 | . 1 2 2 . 5 . . 2 1 . . Prototype ID Bank 2 | . . . . . 1 . . 1 . . . Open Door 5 | . . 2 . . 2 . . . 1 . . Locate Traps 1 | . 1 . . . . . . . . . . Hauler Manifests 1 | . . . 1 . . . . . . . . Registered Components 2 | . . . 1 . 1 . . . . . . Zone Layout 2 | . . . . . 1 . . 1 . . . Fabricator Hacks 4 | . . . . . . 1 . 2 . 1 . Build 4 | . . . . . . 1 . 2 . 1 . Repair Station Hacks 4 | . . . . 2 . . . 1 . 1 . Scan Component 2 | . . . . 1 . . . . . 1 . Repair 1 | . . . . 1 . . . . . . . Refit 1 | . . . . . . . . 1 . . . Recycling Unit Hacks 2 | . 1 . . . 1 . . . . . . Report Inventory 2 | . 1 . . . 1 . . . . . . Scanalyzer . | . . . . . . . . . . . . Garrison Access Hacks 1 | . . . . . . . . . . 1 . Unlock Access 1 | . . . . . . . . . . 1 . Unauthorized Hacks . | . . . . . . . . . . . . Terminals . | . . . . . . . . . . . . Fabricators . | . . . . . . . . . . . . Repair Stations . | . . . . . . . . . . . . Recycling Units . | . . . . . . . . . . . . Scanalyzers . | . . . . . . . . . . . . Garrison Access . | . . . . . . . . . . . . Data Cores Recovered . | . . . . . . . . . . . . Used . | . . . . . . . . . . . . Hacking Detections 15 | . 4 1 2 . 4 . . 2 . 2 . Full Trace Events 7 | . 3 1 1 . 1 . . . . 1 . Feedback Events 1 | . . . 1 . . . . . . . . Corruption 1 | . . . 1 . . . . . . . . Feedback Blocked . | . . . . . . . . . . . . Robot Schematics Acquired . | . . . . . . . . . . . . Robots Built 7 | . . . . . . . . 6 . 1 . Matter 525 | . . . . . . . . 372 . 153 . Time 179 | . . . . . . . . 98 . 81 . Total Robot Build Rating 13 | . . . . . . . . 12 . 1 . Part Schematics Acquired . | . . . . . . . . . . . . Parts Built . | . . . . . . . . . . . . Matter 212 | . . . . . . 212 . . . . . Time 106 | . . . . . . 106 . . . . . Total Part Build Rating . | . . . . . . . . . . . . Parts Repaired 1 | . . . . 1 . . . . . . . Time 32 | . . . . 32 . . . . . . . Parts Recycled . | . . . . . . . . . . . . Recycled Matter . | . . . . . . . . . . . . Retrieved Matter . | . . . . . . . . . . . . Retrieved Components . | . . . . . . . . . . . . Parts Scanalyzed . | . . . . . . . . . . . . Part Schematics Acquired . | . . . . . . . . . . . . Parts Damaged . | . . . . . . . . . . . . Bothacking | -11 -10 -10 -9 -8 -8 -7 -7 -7 -7 -6 -6 ------------ Run | Scr Mat Min Mat Mat Sto Fac Was Fac Low Fac Gar Used RIF Installer . | . . . . . . . . . . . . Robots Hacked 1 | . . . . . . . . . . . 1 Non-combat . | . . . . . . . . . . . . Combat 1 | . . . . . . . . . . . 1 Robot Hacks Applied 1 | . . . . . . . . . . . 1 parse_system 1 | . . . . . . . . . . . 1 Relay Couplers Released 3 | . . . . . . . . . . . 3 Machine Destruction 3 | . . . . . . . . . . . 3 Robots Rewired . | . . . . . . . . . . . . Allies Hacked . | . . . . . . . . . . . . Hacks Repelled . | . . . . . . . . . . . . Allies | -11 -10 -10 -9 -8 -8 -7 -7 -7 -7 -6 -6 -------- Run | Scr Mat Min Mat Mat Sto Fac Was Fac Low Fac Gar Total Allies 18 | . . . . . 10 . . 6 1 1 . Largest Group 10 | . . . . . 10 . . 5 1 2 . Highest-Rated Group 173 | . . . . . 173 . . 90 137 145 . Highest-Rated Ally 137 | . . . . . 29 . . 18 137 137 . Total Orders 16 | . . . 1 . 9 . . 5 . 1 . ROAM 1 | . . . . . . . . 1 . . . GUARD 3 | . . . . . . . . 3 . . . AID 1 | . . . . . 1 . . . . . . COLLECT 1 | . . . . . . . . . . 1 . EXPLORE 7 | . . . 1 . 5 . . 1 . . . RETURN 3 | . . . . . 3 . . . . . . Ally Attacks 67 | . . . . . 52 . . 13 . 2 . Total Damage 978 | . . . . . 702 . . 174 . 102 . Kills 18 | . . . . . 14 . . 3 . 1 . Allies Corrupted . | . . . . . . . . . . . . Allies Melted . | . . . . . . . . . . . . Intel | -11 -10 -10 -9 -8 -8 -7 -7 -7 -7 -6 -6 ------- Run | Scr Mat Min Mat Mat Sto Fac Was Fac Low Fac Gar Robot Analysis Total . | . . . . . . . . . . . . Derelict Logs Recovered 3 | . . . . . . . . . 3 . . Drone Launches 63 | . . . 6 . 53 . . 4 . . . Drone Recoveries 56 | . . . 6 . 50 . . . . . . Exploration | -11 -10 -10 -9 -8 -8 -7 -7 -7 -7 -6 -6 ------------- Run | Scr Mat Min Mat Mat Sto Fac Was Fac Low Fac Gar Turns Passed 6587 | 79 575 590 876 526 1538 271 115 1025 639 172 181 Spaces Moved 3417 | 44 299 367 357 153 521 126 78 448 551 399 74 Core 117 | 3 . . . 2 2 . 22 81 . . 7 Treads 1462 | 41 299 202 84 135 519 126 56 . . . . Legs 572 | . . 165 273 16 . . . 117 . . 1 Wheels . | . . . . . . . . . . . . Hover 76 | . . . . . . . . 76 . . . Flight 1190 | . . . . . . . . 174 551 399 66 Fastest Speed 31 | 50 160 120 150 200 180 180 50 34 114 31 31 Average Speed 141 | 152 160 142 176 215 184 180 147 154 114 33 53 Slowest Speed 1050 | 160 160 160 240 1050 900 180 200 450 114 111 300 Overloaded Moves . | . . . . . . . . . . . . Propulsion Burnouts . | . . . . . . . . . . . . Robots Hopped 1 | . . . . . . . . . . . 1 Cave-ins Triggered . | . . . . . . . . . . . . Exploration Rate (%) 40 | 3 64 73 47 13 96 4 63 12 78 9 18 Regions Visited 11 Branch Regions 3 Pre-discovered Areas . | . . . . . . . . . . . . Known Exits Taken 5 | . . . . 1 1 . . 1 1 1 . Unknown Exits Taken 4 | 1 1 1 1 . . . . . . . . Scrap Searched 4 | . . 1 . . . . . . 3 . . Spaces Dug 43 | . . . . 12 29 . . 2 . . . Terrain Destroyed 243 | . 16 . 31 76 117 . . 2 . . 1 Melee 2 | . . . . . . . . 2 . . . Projectile 1 | . . . . . . . . . . . 1 AOE 240 | . 16 . 31 76 117 . . . . . . Terrain Rammed . | . . . . . . . . . . . . Walls Destroyed . | . . . . . . . . . . . . Machines Disabled . | . . . . . . . . . . . . Actions | -11 -10 -10 -9 -8 -8 -7 -7 -7 -7 -6 -6 --------- Run | Scr Mat Min Mat Mat Sto Fac Was Fac Low Fac Gar Total 4586 | 56 340 405 496 263 925 150 78 707 561 436 169 Wait 424 | . . 5 35 20 209 . . 132 1 22 . Move 3405 | 43 298 366 356 152 520 126 77 447 550 398 72 Hop 1 | . . . . . . . . . . . 1 Pick Up 113 | 7 8 6 15 7 27 2 . 24 2 2 13 Fast Attach 15 | . . 2 . . . . 1 7 2 3 . Attach 83 | 6 1 1 10 6 16 3 . 21 . 2 17 Detach 5 | . . . . . 1 . . 2 . 2 . Swap 28 | . 3 2 3 3 8 1 . 6 . 2 . Drop 45 | . 2 7 7 1 10 . . 9 4 5 . Fire 413 | . 28 16 70 74 134 18 . 36 2 . 35 Melee 23 | . . . . . . . . 23 . . . Ram 13 | . . . . . . . . . . . 13 Kick . | . . . . . . . . . . . . Crush . | . . . . . . . . . . . . Escape Stasis 18 | . . . . . . . . . . . 18 Rewire . | . . . . . . . . . . . . Trap . | . . . . . . . . . . . . Miscellaneous . | . . . . . . . . . . . . Route ------- -11/Scrapyard -10/Materials (discovered 3 exits: *Mat / *Min x2) -10/Mines -9/Materials (discovered 2 exits: *Mat / [*Min]) -8/Materials -8/Storage (discovered 2 exits: *Fac / [Rec]) -7/Factory -7/Waste -7/Factory -7/Lower Caves -6/Factory (discovered 2 exits: Fac / Gar) -6/Garrison History --------- Turn | Location | Event 34 | -11/Scrapyard | Discovered new exit (range 15) 80 | -11/Scrapyard | Entered Materials 152 | -10/Materials | Discovered new exit (range 8) 316 | -10/Materials | Build established: Mutant 373 | -10/Materials | Discovered new exit (range 10) 487 | -10/Materials | Core integrity fell below 50% 571 | -10/Materials | Discovered new exit (range 11) 655 | -10/Materials | Entered Mines 836 | -10/Mines | Core integrity fell below 20% 1027 | -10/Mines | Met a Derelict who couldn't figure out how to use a Trap Extractor 1216 | -10/Mines | Discovered new exit (range 14) 1232 | -10/Mines | Found the Drone Emporium 1238 | -10/Mines | Found Prototype Device 1245 | -10/Mines | Entered Materials 1245 | -9/Materials | Evolved 2 slots: Utility x2 1245 | -9/Materials | Identified Sensor Drone Bay 1697 | -9/Materials | Discovered new exit (range 15) 2040 | -9/Materials | Discovered new exit (range 15) 2121 | -9/Materials | Entered another Materials area 2121 | -8/Materials | Evolved 2 slots: Utility x2 2288 | -8/Materials | Discovered new exit (range 15) 2373 | -8/Materials | Destroyed 14 combat bots 2439 | -8/Materials | Identified exit to Storage 2585 | -8/Materials | Repaired Imp. Treads 2647 | -8/Materials | Entered Storage 2917 | -8/Storage | Lost 4 parts (1p1n1u1w) 3054 | -8/Storage | Discovered new exit (range 11) 3055 | -8/Storage | Assisted by bots powering up and referring to "LRC-V3" 3197 | -8/Storage | Garrison activated, responded to threat 3316 | -8/Storage | Discovered new exit (range 35) 3412 | -8/Storage | Build established: Scavenger-Mutant 3418 | -8/Storage | Garrison activated, responded to threat 3422 | -8/Storage | Core integrity fell below 50% 3808 | -8/Storage | Build established: Hacker-Mutant 4183 | -8/Storage | Identified exit to Factory 4185 | -8/Storage | Entered Factory 4185 | -7/Factory | Evolved 2 slots: Power x1, Propulsion x1 4456 | -7/Factory | Sucked down chute 4456 | -7/Factory | Entered Waste 4467 | -7/Waste | Spotted C-40 Crusher 4482 | -7/Waste | Spotted C-40 Crusher 4483 | -7/Waste | Spotted C-40 Crusher 4490 | -7/Waste | Build established: Scavenger-Mutant 4494 | -7/Waste | Crushed by Compactor (1 part destroyed, 2 dropped) 4497 | -7/Waste | Crushed by Compactor (1 part destroyed, 1 dropped) 4514 | -7/Waste | Spotted C-40 Crusher 4519 | -7/Waste | Crushed by Compactor (1 part destroyed, 2 dropped) 4544 | -7/Waste | Spotted C-40 Crusher 4550 | -7/Waste | Lost 3 parts (1p1n1w) 4552 | -7/Waste | Spotted C-40 Crusher 4555 | -7/Waste | Crushed by Compactor (1 part destroyed, 2 dropped) 4556 | -7/Waste | Discovered new exit (range 16) 4569 | -7/Waste | Identified exit to Factory 4571 | -7/Waste | Entered Factory 4833 | -7/Factory | Lost 3 parts (2u1w) 4863 | -7/Factory | Core integrity fell below 50% 4879 | -7/Factory | Build established: Mutant 4902 | -7/Factory | Lost 6 parts (1p2n2u1w) 5190 | -7/Factory | Fabricated L-31 Rogue (x3) 5240 | -7/Factory | Fabricated L-31 Rogue (x3) 5277 | -7/Factory | Build established: Hacker-Mutant 5373 | -7/Factory | Core integrity fell below 20% 5408 | -7/Factory | Lost 5 parts (2p1n1u1w) 5512 | -7/Factory | Discovered new exit (range 19) 5593 | -7/Factory | Identified exit to Lower Caves 5596 | -7/Factory | Entered Lower Caves 5746 | -7/Lower Caves | Learned location of 1 exit from Factory 5791 | -7/Lower Caves | Encountered a Warlord checkpoint 5828 | -7/Lower Caves | Build established: Scavenger-Mutant 5840 | -7/Lower Caves | Learned Factory security intel 6163 | -7/Lower Caves | Attracted the attention of an 0b10 checkpoint 6231 | -7/Lower Caves | 1C-UTU showed up to help 6233 | -7/Lower Caves | 1C-UTU revealed a hidden path 6234 | -7/Lower Caves | Identified exit to Factory 6235 | -7/Lower Caves | Entered Factory 6235 | -6/Factory | Accompanied by 1 ally (1C-UTU) 6235 | -6/Factory | Evolved 2 slots: Propulsion x1, Utility x1 6236 | -6/Factory | Identified exit to Factory 6371 | -6/Factory | Fabricated R-06 Scavenger? 6406 | -6/Factory | Identified exit to Garrison 6407 | -6/Factory | Entered Garrison 6504 | -6/Garrison | Core integrity fell below 50% 6544 | -6/Garrison | Core integrity fell below 20% 6588 | -6/Garrison | Destroyed by G-67 Veteran with Plasma Rifle Last Messages --------------- 06533_ Acquired 30 matter. 06533_ Slammed into S-27 Virus. 06535_ Acquired Lgt. Nuclear Core. 06537_ Acquired 26 matter. 06541_ Acquired VTOL Module. 06545_ Acquired Autogun. 06546_ Lgt. Nuclear Core destroyed. 06558_ S-27 Virus destroyed. 06560_ Autogun destroyed. 06561_ Broken Adv. Signal Interpreter destroyed. 06561_ VTOL Module destroyed. 06563_ Acquired VTOL Module. 06566_ Acquired Autogun. 06566_ Energy Well destroyed. 06568_ G-50 Soldier destroyed. 06570_ Acquired Adv. Heat Sink. 06572_ Acquired Carbon-fiber Leg. 06573_ Adv. Heat Sink destroyed. 06573_ VTOL Module destroyed. 06579_ Adv. Heat Sink destroyed. Map ----- +----------------------------------------------------+ | | | | | | | | | | | ?????????????????????????????????????????????????? | | ?????????????????????????????????????????????????? | | ?????????????????????????????????????????????????? | | ?????????????????????????????????????????????????? | | ?????????????????????????????????????????????????? | | ?????????????????????????????????????????????????? | | ?????????????????????????????????????????????????? | | ?????????????????????????????????????????????????? | | ?????????????????????????????????????????????????? | | ?????????????????????????????????????????????????? | | ??????????????????????????????####???????????????? | | ?????????????????????????????##!!##??????????????? | | ?????????????????????????????#! !#??????????????? | | ?????????????????????????????#! !#??????????????? | | ?????????????????????????????### ##??????????????? | | ??????????????????????????###### #???????????????? | | ??????????????????????????# %+ #???????????????? | | ??????????????????????????#=### #???????????????? | | ???????????????????????####[### #???????????????? | | ???????????????????????# %%[*## #???????????????? | | ??????????????????????## @%%%## #???????????????? | | ????????????????????### ==*g #???????????????? | | ????????????????????# ; * #???????????????? | | ????????????????????# ### !!### #???????????????? | | ????????????????????# ?# ! ## #???????????????? | | ????????????????????#??######## #???????????????? | | ??????????????????????????????# #???????????????? | | ??????????????????????????????# #???????????????? | | ??????????????????????????????# #???????????????? | | ??????????????????????????????# #???????????????? | | ??????????????????????????????# #???????????????? | | ????????????????????########### ################# | | ????????????????????# | | ????????????????????# | | ????????????????????# | | ????????????????????# #################"""###### | | ????????????????????# #????????????????????????? | | ????????????????????# #????????????????????????? | | ????????????????????# #????????????????????????? | | ????????????????????# #????????????????????????? | | ????????????????????# #????????????????????????? | | ????????????????????# #????????????????????????? | | ????????????????????# #????????????????????????? | | ???????????????????? #????????????????????????? | | ???????????????????? +????????????????????????? | +----------------------------------------------------+ Best States ------------- Heat Dissipation 67 Energy Generation 27 Energy Capacity 790 Matter Stores 300 Matter Capacity 300 Sight Range 22 Robot Scan Range 16 Terrain Scan Range 20 Terrain Scan Density 10 ECM Strength 2 Base Temperature (-) 100 Core Shielding 20 Evasion (%) 63 Targeting Accuracy 8 Recoil Reduction 3 Offensive Hacking 20 Defensive Hacking 10 Item Schematics ----------------- None Robot Schematics ------------------ None Fabricated ------------ L-31 Rogue | x3 | -7/Factory | Preloaded L-31 Rogue | x3 | -7/Factory | Preloaded R-06 Scavenger | x1 | -6/Factory | Preloaded Alien Tech Used ----------------- None Achievements -------------- My Command Is Your Wish Challenges ------------ None Game ------ Seed RocketBottomlessCorpse Manual? 0 Play Time 00:57:52 Cumulative 22.2 hours Start 2021.07.14 @ 16:00:21 End 2021.07.14 @ 16:55:28 Sessions 1 Manual Loads 0 Difficulty Rogue Special Mode None Game No. 36 Rogue 36 Adventurer 0 Explorer 0 Win Type - Total 0 Types 0/0/0/0/0/0/0/0/0 Lore% 19 Gallery% 31 Achievement% 19 Wizard Run 0 Options --------- ASCII 0 Keyboard 0 Movement Mouse Keybinds 0 Fullscreen 2 Font 16/Cog Map View 76x50 Tactical HUD 1 Map Filters NONE Filters NONE Steam 1 RUN: 0c4b96a1-c309-4661-9910-5404041815cf